bitfinex/quotes_SOLUSD_20250508
["timestamp","ask_amount","ask_price","bid_price","bid_amount"]
[1746719078954,36.37985982,161.54,161.53,6.19080047]
[1746719079153,6.18850176,161.59,161.52,6.55525084]
[1746719079366,6.18850176,161.59,161.52,0.36411329]
[1746719079367,18.79181043,161.58,161.52,0.36411329]
[1746719079570,36.37985982,161.53,161.44,21.67988106]
[1746719079864,0.14216157,161.55,161.44,6.19425173]
[1746719080059,36.37985982,161.45,161.44,6.19425173]
[1746719080276,0.14216157,161.55,161.43,6.19457274]
[1746719080456,36.37985982,161.44,161.36,6.19732275]
[1746719080658,36.37985982,161.39,161.37,15.49196814]
[1746719080974,0.14216157,161.51,161.37,51.87182796]
[1746719081188,6.33377417,161.51,161.37,15.49196814]
[1746719081481,18.79181043,161.56,161.37,15.49196814]
[1746719081672,36.37985982,161.4,161.37,15.49196814]
[1746719081853,36.37985982,161.42,161.37,51.87182796]
[1746719082057,18.79181043,161.56,161.42,26.0]
[1746719082363,6.18888256,161.59,161.41,26.0]
[1746719082562,3.07284828,161.63,161.45,36.37985982]
[1746719082768,21.65439584,161.63,161.47,26.0]
[1746719083282,78.05667264,161.63,161.37,12.55743871]
[1746719083479,1.13855199,161.62,161.41,55.02950868]
[1746719083776,21.65439584,161.63,161.41,26.0]
[1746719083984,0.14216157,161.57,161.44,26.0]
[1746719084163,36.37985982,161.45,161.41,26.0]
[1746719084482,21.65439584,161.63,161.45,26.0]
[1746719084780,6.18697024,161.63,161.47,26.0]
[1746719084954,18.64964886,161.62,161.47,62.37985982]
[1746719085151,18.64964886,161.6,161.42,26.0]
[1746719085362,0.14216157,161.59,161.42,26.0]
[1746719085573,0.14216157,161.56,161.43,26.0]
[1746719085881,6.1877359,161.61,161.46,26.0]
[1746719086079,36.37985982,161.5,161.47,26.0]
[1746719086266,36.37985982,161.52,161.47,36.37985982]
[1746719086577,36.37985982,161.64,161.46,26.0]
[1746719086778,6.18665483,161.64,161.5,36.37985982]
[1746719086994,42.56651465,161.64,161.5,36.37985982]
[1746719087280,6.18582209,161.66,161.53,6.19080047]
[1746719087469,6.18582209,161.66,161.53,42.57066029]
[1746719087666,10.0,161.76,161.53,42.57066029]
[1746719087667,21.63699307,161.76,161.6,26.0]
[1746719088083,36.37985982,161.62,161.6,26.0]
[1746719088285,21.63699307,161.76,161.61,26.0]
[1746719088459,36.37985982,161.63,161.61,26.0]
[1746719088660,21.63699307,161.76,161.61,26.0]
[1746719089093,18.64964886,161.75,161.57,26.0]
[1746719089389,36.37985982,161.62,161.54,24.70914886]
[1746719089561,21.63966859,161.74,161.56,36.37985982]
[1746719089761,0.14216157,161.73,161.57,62.37985982]
[1746719090071,36.37985982,161.64,161.58,36.37985982]
[1746719090281,21.63966859,161.74,161.6,62.37985982]
[1746719090478,36.37985982,161.65,161.6,26.0]
[1746719090688,21.63966859,161.74,161.6,32.18807594]
[1746719091055,21.63966859,161.74,161.61,36.37985982]
[1746719091261,21.63966859,161.74,161.6,32.18807594]
[1746719091262,6.18276245,161.74,161.63,36.37985982]
[1746719091483,6.18199802,161.76,161.67,26.0]
[1746719091996,36.37985982,161.75,161.69,36.37985982]
[1746719092184,36.37985982,161.75,161.7,36.37985982]
[1746719092367,6.18088,161.79,161.69,42.56453419]
[1746719092567,28.65547688,161.93,161.71,36.37985982]
[1746719092568,21.61828288,161.9,161.71,36.37985982]
[1746719092781,36.37985982,161.73,161.7,32.0589]
[1746719092971,36.37985982,161.82,161.7,32.0589]
[1746719092972,36.37985982,161.71,161.7,6.0589]
[1746719093288,18.64964886,161.81,161.7,6.0589]
[1746719093479,0.14216157,161.81,161.7,6.0589]
[1746719093680,36.37985982,161.72,161.7,6.0589]
[1746719093881,18.64964886,161.81,161.7,6.0589]
[1746719094098,0.14216157,161.83,161.7,6.0589]
[1746719094286,36.37985982,161.73,161.7,6.0589]
[1746719094492,36.37985982,161.82,161.7,6.0589]
[1746719094493,6.18008775,161.81,161.71,6.18390946]
[1746719094779,21.63030714,161.81,161.7,6.0589]
[1746719094981,36.37985982,161.76,161.71,36.37985982]
[1746719095174,36.37985982,161.76,161.7,38.24309782]
[1746719095175,6.17627076,161.91,161.75,36.37985982]
[1746719095499,36.37985982,161.78,161.74,26.0]
[1746719095682,36.37985982,161.78,161.72,62.37985982]
[1746719096267,36.37985982,161.78,161.75,26.0]
[1746719096470,36.37985982,161.78,161.76,6.18199802]
[1746719096796,36.37985982,161.78,161.76,26.0]
[1746719097792,36.37985982,161.81,161.76,26.0]
[1746719097995,36.37985982,161.8,161.76,26.0]
[1746719098295,36.37985982,161.78,161.73,32.18314474]
[1746719098592,36.37985982,161.78,161.7,21.51909866]
[1746719098593,6.18116554,161.79,161.71,6.18390946]
[1746719098894,15.44875688,161.83,161.71,6.18390946]
[1746719099083,26.0,161.82,161.7,12.24309823]
[1746719099387,36.37985982,161.82,161.7,12.24309823]
[1746719099579,36.37985982,161.73,161.7,12.24309823]
[1746719099770,36.37985982,161.82,161.7,12.24309823]
[1746719099971,36.37985982,161.73,161.7,12.24309823]
[1746719100186,36.37985982,161.82,161.7,12.24309823]
[1746719100394,18.64964886,161.85,161.73,36.37985982]
[1746719100395,6.17856039,161.85,161.73,36.37985982]
[1746719100566,6.17856039,161.85,161.72,26.0]
[1746719100567,21.61427776,161.93,161.78,36.37985982]
[1746719100779,36.37985982,161.83,161.78,36.37985982]
[1746719100970,21.61427776,161.93,161.79,36.37985982]
[1746719101204,39.43339502,162.0,161.84,26.0]
[1746719101377,10.0,162.02,161.87,36.37985982]
[1746719101378,6.17322056,161.99,161.87,36.37985982]
[1746719101684,16.16941205,162.09,161.89,62.37985982]
[1746719101899,6.16941205,162.09,161.9,36.37985982]
[1746719102198,52.44126463,162.09,161.9,18.64964886]
[1746719102403,21.59294218,162.09,161.92,26.0]
[1746719102696,15.42353013,162.09,161.9,36.37985982]
[1746719102871,36.37985982,161.93,161.89,15.44208193]
[1746719103065,18.64964886,162.05,161.87,32.17779699]
[1746719103385,15.42353013,162.09,161.94,36.37985982]
[1746719103694,36.37985982,162.0,161.87,6.17779699]
[1746719103893,36.37985982,161.89,161.87,6.17779699]
[1746719104099,26.14216157,161.99,161.86,6.0806]
[1746719104271,0.14216157,162.01,161.86,12.25876168]
[1746719104600,36.37985982,161.87,161.86,6.0806]
[1746719104797,36.37985982,161.87,161.84,1.5116]
[1746719105022,46.04804256,161.98,161.84,7.69050432]
[1746719105023,15.43400419,161.98,161.84,7.69050432]
[1746719105297,15.43400419,161.98,161.86,36.37985982]
[1746719105599,44.79181043,161.97,161.84,1.5116]
[1746719105796,0.14216157,161.97,161.84,1.5116]
[1746719106093,15.43400419,161.98,161.81,231.7]
[1746719106094,36.37985982,161.85,161.81,231.7]
[1746719106272,36.37985982,161.83,161.81,231.7]
[1746719106471,15.44565395,161.86,161.76,7.78926293]
[1746719106684,6.17703378,161.89,161.76,70.16912275]
[1746719106990,6.17703378,161.89,161.79,36.37985982]
[1746719107195,36.37985982,161.83,161.78,36.37985982]
[1746719107397,36.37985982,161.8,161.76,7.78926293]
[1746719107594,36.37985982,161.77,161.72,6.18318467]
[1746719107803,36.37985982,161.73,161.71,6.6293]
[1746719107987,36.37985982,161.72,161.71,6.6293]
[1746719108180,36.37985982,161.72,161.68,7.83576486]
[1746719108384,62.37985982,161.82,161.68,44.21562468]
[1746719108588,6.18008775,161.81,161.71,36.37985982]
[1746719108893,6.18008775,161.81,161.69,18.64964886]
[1746719109089,6.18008775,161.81,161.69,36.37985982]
[1746719109295,6.18008775,161.81,161.71,36.37985982]
[1746719109490,36.37985982,161.76,161.7,36.37985982]
[1746719109673,6.18008775,161.81,161.7,36.37985982]
[1746719109877,15.44459171,161.87,161.75,36.37985982]
[1746719110073,36.37985982,161.82,161.76,36.37985982]
[1746719110397,21.62362535,161.86,161.73,36.37985982]
[1746719110702,36.37985982,161.75,161.68,1.651]
[1746719110994,36.37985982,161.82,161.68,38.03085982]
[1746719111298,36.37985982,161.73,161.69,6.18467437]
[1746719111800,26.14216157,161.78,161.68,1.651]
[1746719111974,36.37985982,161.69,161.64,6.3268]
[1746719112175,26.0,161.76,161.64,6.3268]
[1746719112370,36.37985982,161.65,161.6,1.5737]
[1746719112596,0.14216157,161.72,161.6,1.5737]
[1746719112903,0.14216157,161.72,161.57,6.6628]
[1746719112904,36.37985982,161.61,161.57,6.6628]
[1746719113099,0.14216157,161.72,161.57,6.6628]
[1746719113306,0.14216157,161.72,161.57,12.85197798]
[1746719113476,36.37985982,161.64,161.57,12.85197798]
[1746719113680,26.14216157,161.71,161.57,6.6628]
[1746719113993,26.14216157,161.71,161.57,12.85180859]
[1746719113994,36.37985982,161.63,161.57,12.85180859]
[1746719114194,26.0,161.71,161.57,12.85180859]
[1746719114579,6.18429189,161.7,161.57,12.85180859]
[1746719115205,36.37985982,161.6,161.57,6.6628]
[1746719115903,6.18429189,161.7,161.58,26.0]
[1746719116108,6.18429189,161.7,161.59,36.37985982]
[1746719116303,6.18429189,161.7,161.57,12.85201064]
[1746719116491,18.64964886,161.77,161.61,6.1877359]
[1746719116800,21.6343182,161.78,161.64,36.37985982]
[1746719117007,21.62629757,161.84,161.68,36.37985982]
[1746719117181,6.17894216,161.84,161.71,36.37985982]
[1746719117382,36.37985982,161.79,161.73,36.37985982]
[1746719117704,36.37985982,161.82,161.67,1.6169]
[1746719117908,36.37985982,161.82,161.67,37.99675982]
[1746719118094,6.17894216,161.84,161.69,36.37985982]
[1746719118411,36.37985982,161.8,161.75,36.37985982]
[1746719118612,21.61427776,161.93,161.76,6.18199802]
[1746719118804,36.37985982,161.77,161.73,6.18314474]
[1746719118984,30.52846799,161.91,161.73,6.18314474]
[1746719118985,18.64964886,161.87,161.73,6.18314474]
[1746719119183,36.37985982,161.75,161.73,6.18314474]
[1746719119609,36.37985982,161.74,161.67,1.6169]
[1746719119810,36.37985982,161.69,161.68,6.1850569]
[1746719120050,0.14216157,161.81,161.68,6.1850569]
[1746719120326,37.63718825,161.94,161.73,36.37985982]
[1746719120327,36.37985982,161.78,161.73,36.37985982]
[1746719120479,36.37985982,161.78,161.74,6.1825367]
[1746719120788,26.0,161.82,161.68,6.1850569]
[1746719120995,36.37985982,161.73,161.68,6.1850569]
[1746719121191,36.37985982,161.7,161.68,6.1850569]
[1746719121505,36.37985982,161.69,161.6,36.37985982]
[1746719121705,0.14216157,161.74,161.58,1.5707]
[1746719121906,36.37985982,161.65,161.6,36.37985982]
[1746719122085,36.37985982,161.66,161.59,52.60182161]
[1746719122290,0.14216157,161.74,161.6,26.0]
[1746719122602,36.37985982,161.61,161.59,6.18850176]
[1746719122779,6.32607103,161.71,161.59,6.18850176]
[1746719122985,36.37985982,161.62,161.59,6.18850176]
[1746719123402,21.78584469,161.71,161.58,7.75951613]
[1746719123606,36.37985982,161.59,161.58,7.75951613]
[1746719123809,32.18359972,161.72,161.58,59.61158785]
[1746719124006,0.14216157,161.71,161.58,23.23172803]
[1746719124515,36.37985982,161.61,161.58,23.23172803]
[1746719124697,3.915422,161.65,161.58,23.23172803]
[1746719125109,36.37985982,161.59,161.57,6.18919257]
[1746719125409,36.37985982,161.58,161.57,6.18919257]
[1746719125810,10.10164983,161.65,161.57,6.18919257]
[1746719126014,3.915422,161.65,161.57,6.18919257]
[1746719126224,36.37985982,161.58,161.57,6.18919257]
[1746719126610,3.915422,161.65,161.52,36.37985982]
[1746719126814,3.915422,161.65,161.51,36.37985982]
[1746719127313,36.37985982,161.55,161.5,52.63157894]
[1746719127536,36.37985982,161.64,161.5,21.67182662]
[1746719127537,0.14216157,161.63,161.5,21.67182662]
[1746719128092,36.37985982,161.52,161.5,21.67182662]
[1746719128721,26.0,161.64,161.51,36.37985982]
[1746719129017,3.915422,161.65,161.51,44.64964886]
[1746719129194,3.915422,161.65,161.54,26.0]
[1746719129397,3.915422,161.65,161.55,18.64964886]
[1746719129608,36.37985982,161.57,161.5,52.63157894]
[1746719129798,35.72777644,161.57,161.52,35.72777644]
[1746719130123,35.72777644,161.54,161.5,21.67182662]
[1746719130304,35.72777644,161.55,161.5,21.67182662]
[1746719130618,35.71895147,161.59,161.5,21.67182662]
[1746719130925,35.71895147,161.56,161.5,21.67182662]
[1746719131296,35.71895147,161.6,161.5,21.67182662]
[1746719131495,0.14216157,161.61,161.5,6.19195046]
[1746719131700,35.71895147,161.52,161.5,6.19195046]
[1746719131900,35.71895147,161.6,161.5,6.19195046]
[1746719132219,35.71895147,161.52,161.5,6.19195046]
[1746719132516,35.71895147,161.52,161.49,7.78535694]
[1746719132722,35.71895147,161.5,161.44,247.20523034]
[1746719132903,6.1904712,161.54,161.45,6.19386807]
[1746719132904,35.71895147,161.47,161.45,6.19386807]
[1746719133110,35.71895147,161.46,161.43,6.19463544]
[1746719133315,35.71895147,161.45,161.42,6.1949297]
[1746719133518,35.71895147,161.52,161.42,6.1949297]
[1746719133708,35.71895147,161.45,161.42,6.1949297]
[1746719133899,35.71895147,161.52,161.42,6.1949297]
[1746719134099,35.71895147,161.45,161.42,6.1949297]
[1746719134330,35.71895147,161.43,161.41,6.19529954]
[1746719134552,26.0,161.49,161.36,15.49270473]
[1746719134730,26.0,161.49,161.37,6.19693871]
[1746719134731,18.79181043,161.47,161.37,6.19693871]
[1746719135317,35.71895147,161.44,161.37,6.19693871]
[1746719135527,35.71895147,161.38,161.34,6.19809098]
[1746719135709,0.14216157,161.43,161.33,7.84792093]
[1746719135710,44.79181043,161.43,161.33,7.84792093]
[1746719135902,44.79181043,161.43,161.26,21.70408035]
[1746719136102,35.71895147,161.33,161.26,21.70408035]
[1746719136625,35.71895147,161.32,161.26,21.70408035]
[1746719136997,35.86111304,161.36,161.26,6.20116581]
[1746719136998,54.5107619,161.36,161.26,6.20116581]
[1746719137339,35.71895147,161.27,161.17,21.71620028]
[1746719137517,0.14216157,161.33,161.17,21.71620028]
[1746719137518,35.71895147,161.24,161.17,21.71620028]
[1746719137702,18.79181043,161.33,161.17,21.71620028]
[1746719138224,26.0,161.3,161.17,21.71620028]
[1746719138425,36.69134189,161.28,161.17,6.20462865]
[1746719138624,6.20116581,161.26,161.16,6.20501365]
[1746719138834,36.69134189,161.19,161.16,6.20501365]
[1746719139012,6.200453,161.28,161.16,21.71754777]
[1746719139331,36.69134189,161.23,161.16,21.71754777]
[1746719139515,0.14216157,161.3,161.16,21.71754777]
[1746719139837,6.19847517,161.33,161.16,21.71754777]
[1746719140023,0.14216157,161.32,161.16,21.71754777]
[1746719140220,0.14216157,161.29,161.16,21.71754777]
[1746719140416,36.69134189,161.24,161.16,21.71754777]
[1746719140612,6.19924369,161.31,161.16,47.71754777]
[1746719141107,18.79181043,161.31,161.16,47.71754777]
[1746719141308,15.49065096,161.39,161.19,26.0]
[1746719141518,7.14424398,161.43,161.23,26.0]
[1746719141728,6.19425173,161.44,161.27,26.0]
[1746719142031,6.19195046,161.5,161.35,26.0]
[1746719142594,40.60676389,161.51,161.4,26.0]
[1746719142711,3.915422,161.51,161.45,26.0]
[1746719142910,3.915422,161.51,161.49,26.0]
[1746719143214,2.248822,161.51,161.5,44.64964886]
[1746719143420,2.248822,161.51,161.5,26.0]
[1746719143633,2.248822,161.51,161.45,1.5313]
[1746719143833,2.248822,161.51,161.46,44.64964886]
[1746719144035,2.248822,161.51,161.47,0.14216157]
[1746719144344,36.69134189,161.64,161.57,26.0]
[1746719144512,15.45499505,161.76,161.57,26.0]
[1746719144513,21.63699307,161.76,161.57,26.0]
[1746719144709,9.70312083,161.85,161.62,44.64964886]
[1746719144929,36.69134189,161.82,161.62,26.0]
[1746719145138,36.69134189,161.7,161.63,26.0]
[1746719145338,93.38056377,161.91,161.67,26.0]
[1746719145518,84.51911576,161.91,161.67,26.0]
[1746719145715,36.69134189,161.76,161.67,26.0]
[1746719145910,26.0,161.88,161.63,26.0]
[1746719146123,36.69134189,161.74,161.67,26.0]
[1746719146319,1.13855199,161.9,161.67,26.0]
[1746719146627,36.69134189,161.77,161.71,26.0]
[1746719146920,36.69134189,161.77,161.67,44.64964886]
[1746719147130,83.38056377,161.91,161.71,26.0]
[1746719147332,36.69134189,161.72,161.65,26.0]
[1746719147520,0.14216157,161.77,161.65,26.0]
[1746719147724,36.69134189,161.82,161.62,232.12]
[1746719147918,36.69134189,161.69,161.62,232.12]
[1746719148116,36.69134189,161.63,161.55,1.5504]
[1746719148312,18.64964886,161.76,161.56,6.1896509]
[1746719148536,0.14216157,161.75,161.57,18.64964886]
[1746719148846,36.69134189,161.7,161.63,26.0]
[1746719149142,36.69134189,161.65,161.61,26.0]
[1746719149430,36.69134189,161.62,161.55,1.5504]
[1746719149609,0.14216157,161.69,161.55,1.5504]
[1746719149805,36.69134189,161.61,161.55,1.5504]
[1746719150007,0.14216157,161.72,161.56,44.64964886]
[1746719150233,26.0,161.74,161.56,44.64964886]
[1746719150437,18.64964886,161.73,161.55,7.74036803]
[1746719150662,18.64964886,161.73,161.55,1.5504]
[1746719150663,15.46284089,161.68,161.55,1.5504]
[1746719150874,36.69134189,161.62,161.55,1.5504]
[1746719151055,36.69134189,161.57,161.53,6.1154]
[1746719151359,18.79181043,161.63,161.48,6.19235218]
[1746719151572,36.69134189,161.54,161.46,7.85191395]
[1746719151743,36.69134189,161.53,161.46,7.85191395]
[1746719151942,21.64903815,161.67,161.49,26.0]
[1746719152155,21.64903815,161.67,161.54,26.0]
[1746719152771,36.69134189,161.63,161.55,6.19003404]
[1746719152941,36.69134189,161.59,161.48,18.64964886]
[1746719153260,0.14216157,161.68,161.48,40.32415963]
[1746719153460,36.69134189,161.61,161.49,0.14216157]
[1746719153658,36.69134189,161.59,161.51,26.0]
[1746719153854,36.69134189,161.61,161.55,26.0]
[1746719154062,21.64510792,161.7,161.55,26.0]
[1746719154276,36.69134189,161.64,161.55,26.0]
[1746719154572,52.56656741,161.7,161.55,26.0]
[1746719154764,36.69134189,161.6,161.48,15.62395498]
[1746719154965,36.69134189,161.57,161.48,15.48179341]
[1746719155143,36.69134189,161.57,161.48,6.19271736]
[1746719155339,36.69134189,161.55,161.48,6.19271736]
[1746719155558,36.69134189,161.55,161.51,26.0]
[1746719155870,0.14216157,161.66,161.51,26.0]
[1746719156051,36.69134189,161.55,161.51,26.0]
[1746719156246,36.69134189,161.52,161.46,7.85227901]
[1746719156456,36.69134189,161.49,161.39,231.94]
[1746719156745,6.18888476,161.58,161.44,12.8118699]
[1746719156952,36.69134189,161.52,161.47,26.0]
[1746719157362,36.69134189,161.5,161.44,12.8118699]
[1746719157542,36.69134189,161.51,161.44,12.8118699]
[1746719157952,36.69134189,161.48,161.44,6.6177]
[1746719158466,36.69134189,161.45,161.39,231.94]
[1746719158668,36.69134189,161.44,161.39,231.94]
[1746719158876,0.14216157,161.56,161.39,231.94]
[1746719159386,36.69134189,161.46,161.39,238.13599392]
[1746719159563,36.69134189,161.45,161.39,231.94]
[1746719159866,14.79098566,161.54,161.39,238.13615778]
[1746719160072,36.69134189,161.45,161.39,231.94]
[1746719160278,36.69134189,161.43,161.39,231.94]
[1746719160481,14.79098566,161.54,161.39,231.94]
[1746719160659,36.69134189,161.46,161.39,231.94]
[1746719160859,36.69134189,161.45,161.39,231.94]
[1746719161157,36.69134189,161.42,161.37,1.6058]
[1746719161363,18.64964886,161.52,161.37,1.6058]
[1746719161578,18.64964886,161.52,161.34,18.64964886]
[1746719161579,36.69134189,161.41,161.34,18.64964886]
[1746719161785,36.69134189,161.41,161.32,24.84850826]
[1746719161967,36.69134189,161.39,161.29,6.2000124]
[1746719162173,36.69134189,161.36,161.28,238.2071]
[1746719162484,44.79181043,161.46,161.28,244.4074357]
[1746719162688,36.69134189,161.37,161.31,26.0]
[1746719162852,21.67853824,161.45,161.3,6.19932516]
[1746719163050,36.69134189,161.37,161.3,6.19932516]
[1746719163268,21.67853824,161.45,161.3,6.19932516]
[1746719163581,36.69134189,161.36,161.29,6.19995089]
[1746719163771,52.64787859,161.45,161.28,238.2071]
[1746719163958,52.64787859,161.45,161.32,26.0]
[1746719164157,36.69134189,161.38,161.32,26.0]
[1746719164375,36.69134189,161.43,161.36,26.0]
[1746719164559,36.69134189,161.37,161.29,18.79181043]
[1746719164766,36.69134189,161.35,161.27,1.6472]
[1746719165073,21.81667234,161.48,161.29,18.64964886]
[1746719165277,21.67451077,161.48,161.3,50.0]
[1746719165497,36.69134189,161.43,161.34,44.64964886]
[1746719165705,36.69134189,161.45,161.34,44.64964886]
[1746719165998,6.19271736,161.48,161.35,0.14216157]
[1746719166172,36.69134189,161.42,161.33,0.14216157]
[1746719166370,36.69134189,161.42,161.33,18.79181043]
[1746719166566,10.0,161.63,161.4,0.14216157]
[1746719166766,21.65707566,161.61,161.44,26.0]
[1746719166974,6.1877359,161.61,161.5,26.0]
[1746719167181,36.69134189,161.62,161.54,26.0]
[1746719167377,36.69134189,161.6,161.51,26.0]
[1746719167571,6.18314474,161.73,161.53,26.0]
[1746719167771,8.75717454,161.74,161.61,26.0]
[1746719168095,44.35174189,161.82,161.65,26.0]
[1746719168096,6.18131239,161.78,161.65,26.0]
[1746719168294,36.69134189,161.75,161.66,18.64964886]
[1746719168482,21.63030714,161.81,161.65,26.0]
[1746719168792,15.45316131,161.78,161.62,26.0]
[1746719168997,36.69134189,161.65,161.59,6.597]
[1746719169177,36.69134189,161.65,161.56,232.06]
[1746719169178,18.64964886,161.75,161.57,26.0]
[1746719169370,18.64964886,161.75,161.56,232.06]
[1746719169371,18.64964886,161.75,161.59,26.0]
[1746719169568,18.64964886,161.8,161.6,26.0]
[1746719169877,21.63030714,161.81,161.68,26.0]
[1746719170567,6.18008775,161.81,161.68,26.0]
[1746719170771,6.18139477,161.78,161.68,26.0]
[1746719171099,36.69134189,161.71,161.62,1.5442]
[1746719171282,36.69134189,161.67,161.63,26.0]
[1746719171598,36.69134189,161.66,161.62,27.5442]
[1746719171772,36.69134189,161.64,161.57,6.1892678]
[1746719171972,36.69134189,161.63,161.57,6.1892678]
[1746719172173,18.79181043,161.74,161.55,6.1899943]
[1746719172478,36.69134189,161.6,161.53,6.19080047]
[1746719172883,36.69134189,161.59,161.52,7.8778]
[1746719173105,36.69134189,161.59,161.52,14.0687457]
[1746719173307,21.64769915,161.68,161.52,14.0687457]
[1746719173605,6.1850569,161.68,161.59,26.0]
[1746719173906,6.1850569,161.68,161.6,18.64964886]
[1746719174080,6.1850569,161.68,161.59,26.0]
[1746719174081,6.1850569,161.68,161.57,26.0]
[1746719174283,10.0,161.84,161.63,26.0]
[1746719174494,9.49482837,162.33,161.67,26.0]
[1746719174495,21.62763393,161.83,161.67,26.0]
[1746719174709,6.17932398,161.83,161.73,18.64964886]
[1746719174924,36.69134189,161.84,161.77,26.0]
[1746719175086,36.69134189,161.84,161.74,6.18276245]
[1746719175087,6.17703378,161.89,161.75,26.0]
[1746719175406,6.17703378,161.89,161.77,26.0]
[1746719175712,36.69134189,161.83,161.77,26.0]
[1746719175891,36.69134189,161.78,161.68,6.1850569]
[1746719176091,26.0,161.86,161.72,26.0]
[1746719176292,83.38995613,161.89,161.72,26.0]
[1746719176495,83.38995613,161.89,161.76,26.0]
[1746719176691,6.17703378,161.89,161.76,26.0]
[1746719176891,6.17322056,161.99,161.84,26.0]
[1746719177094,52.47237482,161.99,161.84,26.0]
[1746719177407,21.60627198,161.99,161.86,26.0]
[1746719177712,36.69134189,161.95,161.87,18.64964886]
[1746719177916,21.60627198,161.99,161.81,7.83798775]
[1746719177917,36.69134189,161.91,161.81,7.83798775]
[1746719178102,36.69134189,161.89,161.82,26.0]
[1746719178298,21.60627198,161.99,161.82,26.0]
[1746719178515,6.17322056,161.99,161.87,18.64964886]
[1746719178816,26.0,162.04,161.89,6.17703378]
[1746719179014,21.59560683,162.07,161.89,6.17703378]
[1746719179310,36.69134189,161.95,161.87,24.82710111]
[1746719179486,36.69134189,161.93,161.87,6.17745225]
[1746719179689,36.69134189,161.92,161.86,6.17814601]
[1746719179905,36.69134189,161.9,161.84,50.82825377]
[1746719180111,62.69134189,162.0,161.84,50.82825377]
[1746719180691,30.8546913,162.05,161.85,0.14216157]
[1746719180894,21.59693939,162.06,161.9,26.0]
[1746719181118,21.59693939,162.06,161.91,18.64964886]
[1746719181425,52.44970996,162.06,161.86,6.17817867]
[1746719181617,26.0,162.03,161.87,44.64964886]
[1746719181926,52.44970996,162.06,161.88,0.14216157]
[1746719182120,18.64964886,162.05,161.87,44.64964886]
[1746719182329,18.64964886,162.05,161.87,18.64964886]
[1746719182330,26.0,162.02,161.87,18.64964886]
[1746719182705,36.69134189,161.93,161.86,26.0]
[1746719183026,6.17093489,162.05,161.87,18.64964886]
[1746719183197,6.17093489,162.05,161.86,82.17813063]
[1746719183198,36.69134189,162.02,161.92,44.64964886]
[1746719183397,36.69134189,162.01,161.92,44.64964886]
[1746719183598,36.69134189,161.99,161.92,26.0]
[1746719183795,21.59827213,162.05,161.91,18.64964886]
[1746719184029,6.17093489,162.05,161.94,44.64964886]
[1746719184233,36.69134189,162.0,161.94,26.0]
[1746719184520,6.17093489,162.05,161.94,26.0]
[1746719184725,6.17093489,162.05,161.95,18.64964886]
[1746719184934,30.84042009,162.13,161.96,6.31652561]
[1746719185122,30.84042009,162.13,161.96,18.64964886]
[1746719185507,36.69134189,162.0,161.94,6.17509119]
[1746719185816,36.69134189,162.0,161.9,6.17665225]
[1746719186125,0.14216157,162.11,161.94,18.64964886]
[1746719186333,6.16636862,162.17,161.98,26.64024886]
[1746719186522,6.16522811,162.2,162.05,0.14216157]
[1746719186910,6.16256855,162.27,162.06,6.17055411]
[1746719187104,15.40737088,162.26,162.06,6.17055411]
[1746719187327,36.69134189,162.1,162.04,6.17131572]
[1746719187737,15.40737088,162.26,161.98,57.9906]
[1746719187738,36.69134189,162.05,161.99,6.17322056]
[1746719188041,36.69134189,162.08,162.01,26.0]
[1746719188241,26.0,162.18,162.03,26.0]
[1746719188536,36.69134189,162.09,162.02,26.0]
[1746719188725,62.69134189,162.18,162.02,26.0]
[1746719188931,21.56367444,162.31,162.11,24.81829977]
[1746719189147,21.56367444,162.31,162.11,6.16865091]
[1746719189322,21.56367444,162.31,162.14,26.0]
[1746719189722,21.56367444,162.31,162.11,47.5902782]
[1746719189925,21.56367444,162.31,162.12,18.79181043]
[1746719190136,36.69134189,162.17,162.11,32.16865091]
[1746719190331,26.0,162.27,162.11,32.16865091]
[1746719190539,36.69134189,162.13,162.09,6.16913244]
[1746719190739,36.69134189,162.13,162.08,231.5]
[1746719190740,26.0,162.23,162.03,18.64964886]
[1746719190942,6.16522811,162.2,162.05,0.14216157]
[1746719191141,36.69134189,162.12,162.04,21.59960503]
[1746719191323,6.16522811,162.2,162.04,21.59960503]
[1746719191531,26.0,162.19,162.04,6.17131572]
[1746719191744,6.16522811,162.2,162.05,18.64964886]
[1746719191927,6.16522811,162.2,162.04,56.17131572]
[1746719191928,36.69134189,162.11,162.04,21.7417666]
[1746719192118,6.16522811,162.2,162.05,26.0]
[1746719192320,36.69134189,162.1,162.04,6.17131572]
[1746719192541,36.69134189,162.09,162.04,6.17131572]